{"text_format":"2","workbook":"xlsx","n_sheets":2,"sheets":["Chi phí dự kiến","Tổng hợp"],"not_rendered":{"charts":1,"images":0,"macros":0,"external_links":0,"defined_names":0,"comments":0,"pivot_tables":0},"unopened":[],"bounds":{"document_bytes":16777216,"sheet_cells":100000,"run_cost":"one","rows_first":2000,"rows_last":500,"rows_between":2000,"halvings":0,"cell_chars":16384,"cell_head_chars":4096},"cells_cut":0,"cells_raw":0,"read":"whole","date_system":"1900"}

{"sheet":"Chi phí dự kiến","index":0,"n_rows":386,"n_cols":12,"rows_kept":386,"cut":false,"hidden":false,"merged":[[365,0,365,11],[366,1,366,11],[385,0,385,11],[322,1,322,11],[341,0,341,11],[343,0,343,11],[344,1,344,11],[363,0,363,11],[295,0,295,11],[299,0,299,11],[300,1,300,11],[319,0,319,11],[321,0,321,11],[234,1,234,11],[253,0,253,11],[255,1,255,11],[274,0,274,11],[276,1,276,11],[191,1,191,11],[210,0,210,11],[212,0,212,11],[213,1,213,11],[232,0,232,11],[164,0,164,11],[168,0,168,11],[169,1,169,11],[188,0,188,11],[190,0,190,11],[121,0,121,11],[123,0,123,11],[124,1,124,11],[143,0,143,11],[145,1,145,11],[76,0,76,11],[78,1,78,11],[97,0,97,11],[101,0,101,11],[102,1,102,11],[31,0,31,11],[33,1,33,11],[52,0,52,11],[56,0,56,11],[57,1,57,11],[1,1,1,10],[4,8,4,10],[9,0,9,11],[11,0,11,11],[12,1,12,11]]}
[]
[null,"BIỂU MẪU SỐ 04/ĐGTĐ-SCM. TÍNH CHI PHÍ TUÂN THỦ THỦ TỤC HÀNH CHÍNH TRONG DỰ ÁN, DỰ THẢO  VĂN BẢN"]
[]
[]
[null,"BỘ CÔNG AN",{"$nulls":6},"Biểu mẫu 04/ĐGTĐ-SCM"]
[]
[]
[null,"CHI PHÍ TUÂN THỦ THỦ TỤC HÀNH CHÍNH TRONG DỰ ÁN, DỰ THẢO"]
[]
["TÊN DỰ THẢO VĂN BẢN: LUẬT AN NINH DỮ LIỆU "]
[]
["THỦ TỤC HÀNH CHÍNH 1: Đăng ký, khai báo Danh mục dữ liệu quốc gia và thẩm định an ninh hệ thống, đầu tư, chuyển giao công nghệ"]
["1.a","(Đăng ký, khai báo Danh mục dữ liệu quốc gia)"]
["I.","CHI PHÍ THỰC HIỆN TTHC DỰ KIẾN BAN HÀNH MỚI"]
[]
["STT","Các công việc \nkhi thực hiện TTHC","Các hoạt động/ cách thức thực hiện cụ thể","Thời gian thực hiện (giờ)","Mức TNBQ/ 01 giờ làm việc (đồng)","Mức chi phí thuê tư vấn, dịch vụ (đồng)","Mức phí, lệ phí, chi phí khác (đồng)","Số lần thực hiện/ 01 năm","Số lượng đối tượng tuân thủ/01 năm","Chi phí thực hiện TTHC (đồng)","Tổng chi phí thực hiện TTHC/\n01 năm (đồng)","Ghi chú"]
[1,"Chuẩn bị hồ sơ"]
[null,"Cơ quan, tổ chức, cá nhân xử lý dữ liệu thuộc Danh mục kiểm kê, phân loại và khai báo với Bộ Công an","Chuẩn bị hồ sơ",4,58228,null,0,1,5000,{"$f":"G18+F18+(D18*E18)","v":232912},{"$f":"J18*I18*H18","v":1164560000}]
[2,"Nộp hồ sơ","Trực tiếp",0.5,58228,null,0,1,5000,29114,145570000]
[null,null,"Bưu chính",0,58228,null,0,1,0,0,0]
[null,null,"Điện tử",0.25,58228,null,0,1,5000,14557,72785000]
[3,"Nộp phí, lệ phí, chi phí khác",null,null,58228,null,0,1,5000,0,0]
["3.1","Phí",null,0,58228,null,0,1,5000,0,0]
["3.2","Lệ phí",null,0,58228,null,0,1,5000,0,0]
["3.3","Chi phí khác",null,0,58228,null,0,1,5000,0,0]
[4,"Chuẩn bị, phục vụ việc kiểm tra, đánh giá của cơ quan có thẩm quyền (nếu có)",null,0,58228,null,0,1,5000,0,0]
[5,"Công việc khác (nếu có)",null,0,58228,null,0,1,5000,0,0]
[6,"Nhận kết quả","Trực tiếp",0,58228,null,0,1,5000,0,0]
[null,null,"Bưu chính",0,58228,null,0,1,0,0,0]
[null,null,"Điện tử",0.1,58228,null,0,1,5000,5822.8,29114000]
[null,"TỔNG 1.a",null,null,null,{"$f":"SUM(F17:F27)","v":0},{"$f":"SUM(G17:G27)","v":0},null,null,{"$f":"SUM(J17:J30)","v":282405.8},{"$f":"SUM(K17:K30)","v":1412029000}]
["Ghi chú giả định số liệu: Doanh nghiệp siêu nhỏ, nhỏ và vừa không xử lý dữ liệu quy mô lớn được miễn trừ theo Điều 13 (Khoản 3) của dự thảo Luật."]
[]
["1.b","(Thẩm định an ninh hệ thống, hoạt động đầu tư và chuyển giao công nghệ)"]
["I.","CHI PHÍ THỰC HIỆN TTHC DỰ KIẾN BAN HÀNH MỚI"]
[]
["STT","Các công việc \nkhi thực hiện TTHC","Các hoạt động/ cách thức thực hiện cụ thể","Thời gian thực hiện (giờ)","Mức TNBQ/ 01 giờ làm việc (đồng)","Mức chi phí thuê tư vấn, dịch vụ (đồng)","Mức phí, lệ phí, chi phí khác (đồng)","Số lần thực hiện/ 01 năm","Số lượng đối tượng tuân thủ/01 năm","Chi phí thực hiện TTHC (đồng)","Tổng chi phí thực hiện TTHC/\n01 năm (đồng)","Ghi chú"]
[1,"Chuẩn bị hồ sơ"]
[null,"Chủ đầu tư lập hồ sơ mô tả hệ thống, phương án bảo đảm an ninh, tài liệu kỹ thuật dự án đầu tư, chuyển giao công nghệ","Chuẩn bị hồ sơ",32,58228,8000000,0,1,800,{"$f":"G39+F39+(D39*E39)","v":9863296},{"$f":"J39*I39*H39","v":7890636800}]
[2,"Nộp hồ sơ","Trực tiếp",0.5,58228,null,0,1,800,29114,23291200]
[null,null,"Bưu chính",0,58228,null,0,1,0,0,0]
[null,null,"Điện tử",0.25,58228,null,0,1,800,14557,11645600]
[3,"Nộp phí, lệ phí, chi phí khác",null,null,58228,null,0,1,800,0,0]
["3.1","Phí",null,0,58228,null,0,1,800,0,0]
["3.2","Lệ phí",null,0,58228,null,0,1,800,0,0]
["3.3","Chi phí khác",null,0,58228,null,0,1,800,0,0]
[4,"Chuẩn bị, phục vụ việc kiểm tra, đánh giá của cơ quan có thẩm quyền (nếu có)",null,0,58228,null,0,1,800,0,0]
[5,"Công việc khác (nếu có)",null,0,58228,null,0,1,800,0,0]
[6,"Nhận kết quả","Trực tiếp",2,58228,null,0,1,800,116456,93164800]
[null,null,"Bưu chính",0,58228,null,0,1,0,0,0]
[null,null,"Điện tử",0.1,58228,null,0,1,800,5822.8,4658240]
[null,"TỔNG 1.b",null,null,null,{"$f":"SUM(F38:F48)","v":8000000},{"$f":"SUM(G38:G48)","v":0},null,null,{"$f":"SUM(J38:J51)","v":10029245.800000001},{"$f":"SUM(K38:K51)","v":8023396640}]
["Ghi chú giả định số liệu: Đã tính chi phí thuê tư vấn kỹ thuật, pháp lý chuẩn bị hồ sơ khoảng 8.000.000 đồng/hồ sơ; áp dụng cơ chế thẩm định kép liên thông với an ninh mạng theo Điều 14 để giảm trùng lặp."]
[]
[null,"TỔNG NHÓM (THỦ TỤC 1)",{"$nulls":8},{"$f":"K31+K52","v":9435425640}]
[]
["THỦ TỤC HÀNH CHÍNH 2: Báo cáo đánh giá rủi ro định kỳ, đột xuất và chứng nhận hợp quy sản phẩm, dịch vụ công nghệ an ninh dữ liệu"]
["2.a","(Báo cáo đánh giá rủi ro an ninh dữ liệu định kỳ, đột xuất)"]
["I.","CHI PHÍ THỰC HIỆN TTHC DỰ KIẾN BAN HÀNH MỚI"]
[]
["STT","Các công việc \nkhi thực hiện TTHC","Các hoạt động/ cách thức thực hiện cụ thể","Thời gian thực hiện (giờ)","Mức TNBQ/ 01 giờ làm việc (đồng)","Mức chi phí thuê tư vấn, dịch vụ (đồng)","Mức phí, lệ phí, chi phí khác (đồng)","Số lần thực hiện/ 01 năm","Số lượng đối tượng tuân thủ/01 năm","Chi phí thực hiện TTHC (đồng)","Tổng chi phí thực hiện TTHC/\n01 năm (đồng)","Ghi chú"]
[1,"Chuẩn bị hồ sơ"]
[null,"Chủ quản hệ thống thông tin xử lý dữ liệu Cốt lõi, dữ liệu Quan trọng tự tổ chức đánh giá rủi ro, lập báo cáo theo mẫu","Chuẩn bị hồ sơ",16,58228,null,0,1,2000,{"$f":"G63+F63+(D63*E63)","v":931648},{"$f":"J63*I63*H63","v":1863296000}]
[2,"Nộp hồ sơ","Trực tiếp",0.5,58228,null,0,1,2000,29114,58228000]
[null,null,"Bưu chính",0,58228,null,0,1,0,0,0]
[null,null,"Điện tử",0.25,58228,null,0,1,2000,14557,29114000]
[3,"Nộp phí, lệ phí, chi phí khác",null,null,58228,null,0,1,2000,0,0]
["3.1","Phí",null,0,58228,null,0,1,2000,0,0]
["3.2","Lệ phí",null,0,58228,null,0,1,2000,0,0]
["3.3","Chi phí khác",null,0,58228,null,0,1,2000,0,0]
[4,"Chuẩn bị, phục vụ việc kiểm tra, đánh giá của cơ quan có thẩm quyền (nếu có)",null,0,58228,null,0,1,2000,0,0]
[5,"Công việc khác (nếu có)",null,0,58228,null,0,1,2000,0,0]
[6,"Nhận kết quả","Trực tiếp",0,58228,null,0,1,2000,0,0]
[null,null,"Bưu chính",0,58228,null,0,1,0,0,0]
[null,null,"Điện tử",0.1,58228,null,0,1,2000,5822.8,11645600]
[null,"TỔNG 2.a",null,null,null,{"$f":"SUM(F62:F72)","v":0},{"$f":"SUM(G62:G72)","v":0},null,null,{"$f":"SUM(J62:J75)","v":981141.8},{"$f":"SUM(K62:K75)","v":1962283600}]
["Ghi chú giả định số liệu: Ước tính khoảng 2.000 cơ quan, tổ chức thuộc diện xử lý dữ liệu Cốt lõi/Quan trọng trên toàn quốc phải thực hiện hằng năm."]
[]
["2.b","(Cấp Chứng nhận hợp quy sản phẩm, dịch vụ công nghệ an ninh dữ liệu)"]
["I.","CHI PHÍ THỰC HIỆN TTHC DỰ KIẾN BAN HÀNH MỚI"]
[]
["STT","Các công việc \nkhi thực hiện TTHC","Các hoạt động/ cách thức thực hiện cụ thể","Thời gian thực hiện (giờ)","Mức TNBQ/ 01 giờ làm việc (đồng)","Mức chi phí thuê tư vấn, dịch vụ (đồng)","Mức phí, lệ phí, chi phí khác (đồng)","Số lần thực hiện/ 01 năm","Số lượng đối tượng tuân thủ/01 năm","Chi phí thực hiện TTHC (đồng)","Tổng chi phí thực hiện TTHC/\n01 năm (đồng)","Ghi chú"]
[1,"Chuẩn bị hồ sơ"]
[null,"Doanh nghiệp chuẩn bị hồ sơ kỹ thuật, kết quả thử nghiệm sản phẩm để đề nghị cấp chứng nhận hợp quy","Chuẩn bị hồ sơ",24,58228,5000000,0,1,150,{"$f":"G84+F84+(D84*E84)","v":6397472},{"$f":"J84*I84*H84","v":959620800}]
[2,"Nộp hồ sơ","Trực tiếp",0.5,58228,null,0,1,150,29114,4367100]
[null,null,"Bưu chính",0,58228,null,0,1,0,0,0]
[null,null,"Điện tử",0.25,58228,null,0,1,150,14557,2183550]
[3,"Nộp phí, lệ phí, chi phí khác",null,null,58228,null,0,1,150,0,0]
["3.1","Phí",null,0,58228,null,0,1,150,0,0]
["3.2","Lệ phí",null,0,58228,null,0,1,150,0,0]
["3.3","Chi phí khác",null,0,58228,null,0,1,150,0,0]
[4,"Chuẩn bị, phục vụ việc kiểm tra, đánh giá của cơ quan có thẩm quyền (nếu có)",null,0,58228,null,0,1,150,0,0]
[5,"Công việc khác (nếu có)",null,0,58228,null,0,1,150,0,0]
[6,"Nhận kết quả","Trực tiếp",1,58228,null,0,1,150,58228,8734200]
[null,null,"Bưu chính",0,58228,null,0,1,0,0,0]
[null,null,"Điện tử",0.1,58228,null,0,1,150,5822.8,873420]
[null,"TỔNG 2.b",null,null,null,{"$f":"SUM(F83:F93)","v":5000000},{"$f":"SUM(G83:G93)","v":0},null,null,{"$f":"SUM(J83:J96)","v":6505193.7999999998},{"$f":"SUM(K83:K96)","v":975779070}]
["Ghi chú giả định số liệu: Đã tính chi phí thuê tổ chức thử nghiệm kỹ thuật độc lập (khoảng 5.000.000 đồng/hồ sơ); mức phí, lệ phí thẩm định cụ thể do Bộ Tài chính quy định."]
[]
[null,"TỔNG NHÓM (THỦ TỤC 2)",{"$nulls":8},{"$f":"K76+K97","v":2938062670}]
[]
["THỦ TỤC HÀNH CHÍNH 3: Cấp phép giao dịch dữ liệu Cốt lõi, Quan trọng trong trường hợp đặc biệt"]
["3","(Cấp phép giao dịch, mua bán dữ liệu Cốt lõi, Quan trọng trong trường hợp đặc biệt)"]
["I.","CHI PHÍ THỰC HIỆN TTHC DỰ KIẾN BAN HÀNH MỚI"]
[]
["STT","Các công việc \nkhi thực hiện TTHC","Các hoạt động/ cách thức thực hiện cụ thể","Thời gian thực hiện (giờ)","Mức TNBQ/ 01 giờ làm việc (đồng)","Mức chi phí thuê tư vấn, dịch vụ (đồng)","Mức phí, lệ phí, chi phí khác (đồng)","Số lần thực hiện/ 01 năm","Số lượng đối tượng tuân thủ/01 năm","Chi phí thực hiện TTHC (đồng)","Tổng chi phí thực hiện TTHC/\n01 năm (đồng)","Ghi chú"]
[1,"Chuẩn bị hồ sơ"]
[null,"Tổ chức, cá nhân lập hồ sơ đề nghị, kèm thỏa thuận giao dịch dự kiến và đánh giá tác động an ninh liên quan","Chuẩn bị hồ sơ",40,58228,10000000,0,1,10,{"$f":"G108+F108+(D108*E108)","v":12329120},{"$f":"J108*I108*H108","v":123291200}]
[2,"Nộp hồ sơ","Trực tiếp",0.5,58228,null,0,1,10,29114,291140]
[null,null,"Bưu chính",0,58228,null,0,1,0,0,0]
[null,null,"Điện tử",0.25,58228,null,0,1,10,14557,145570]
[3,"Nộp phí, lệ phí, chi phí khác",null,null,58228,null,0,1,10,0,0]
["3.1","Phí",null,0,58228,null,0,1,10,0,0]
["3.2","Lệ phí",null,0,58228,null,0,1,10,0,0]
["3.3","Chi phí khác",null,0,58228,null,0,1,10,0,0]
[4,"Chuẩn bị, phục vụ việc kiểm tra, đánh giá của cơ quan có thẩm quyền (nếu có)",null,0,58228,null,0,1,10,0,0]
[5,"Công việc khác (nếu có)",null,0,58228,null,0,1,10,0,0]
[6,"Nhận kết quả","Trực tiếp",2,58228,null,0,1,10,116456,1164560]
[null,null,"Bưu chính",0,58228,null,0,1,0,0,0]
[null,null,"Điện tử",0.1,58228,null,0,1,10,5822.8,58228]
[null,"TỔNG",null,null,null,{"$f":"SUM(F107:F117)","v":10000000},{"$f":"SUM(G107:G117)","v":0},null,null,{"$f":"SUM(J107:J120)","v":12495069.800000001},{"$f":"SUM(K107:K120)","v":124950698}]
["Ghi chú giả định số liệu: Thủ tục hiếm gặp, tính chất phức tạp; đã tính chi phí thuê tư vấn pháp lý, kỹ thuật khoảng 10.000.000 đồng/hồ sơ."]
[]
["THỦ TỤC HÀNH CHÍNH 4: Đăng ký, cấp phép kinh doanh dịch vụ dữ liệu, bao gồm hoạt động môi giới, vận hành sàn giao dịch dữ liệu"]
["4.a","(Đăng ký hoạt động môi giới, cung cấp sàn giao dịch dữ liệu)"]
["I.","CHI PHÍ THỰC HIỆN TTHC DỰ KIẾN BAN HÀNH MỚI"]
[]
["STT","Các công việc \nkhi thực hiện TTHC","Các hoạt động/ cách thức thực hiện cụ thể","Thời gian thực hiện (giờ)","Mức TNBQ/ 01 giờ làm việc (đồng)","Mức chi phí thuê tư vấn, dịch vụ (đồng)","Mức phí, lệ phí, chi phí khác (đồng)","Số lần thực hiện/ 01 năm","Số lượng đối tượng tuân thủ/01 năm","Chi phí thực hiện TTHC (đồng)","Tổng chi phí thực hiện TTHC/\n01 năm (đồng)","Ghi chú"]
[1,"Chuẩn bị hồ sơ"]
[null,"Tổ chức chuẩn bị hồ sơ đăng ký, phương án bảo đảm an ninh hệ thống sàn giao dịch","Chuẩn bị hồ sơ",24,58228,3000000,0,1,50,{"$f":"G130+F130+(D130*E130)","v":4397472},{"$f":"J130*I130*H130","v":219873600}]
[2,"Nộp hồ sơ","Trực tiếp",0.5,58228,null,0,1,50,29114,1455700]
[null,null,"Bưu chính",0,58228,null,0,1,0,0,0]
[null,null,"Điện tử",0.25,58228,null,0,1,50,14557,727850]
[3,"Nộp phí, lệ phí, chi phí khác",null,null,58228,null,0,1,50,0,0]
["3.1","Phí",null,0,58228,null,0,1,50,0,0]
["3.2","Lệ phí",null,0,58228,null,0,1,50,0,0]
["3.3","Chi phí khác",null,0,58228,null,0,1,50,0,0]
[4,"Chuẩn bị, phục vụ việc kiểm tra, đánh giá của cơ quan có thẩm quyền (nếu có)",null,0,58228,null,0,1,50,0,0]
[5,"Công việc khác (nếu có)",null,0,58228,null,0,1,50,0,0]
[6,"Nhận kết quả","Trực tiếp",1,58228,null,0,1,50,58228,2911400]
[null,null,"Bưu chính",0,58228,null,0,1,0,0,0]
[null,null,"Điện tử",0.1,58228,null,0,1,50,5822.8,291140]
[null,"TỔNG 4.a",null,null,null,{"$f":"SUM(F129:F139)","v":3000000},{"$f":"SUM(G129:G139)","v":0},null,null,{"$f":"SUM(J129:J142)","v":4505193.8},{"$f":"SUM(K129:K142)","v":225259690}]
["Ghi chú giả định số liệu: Đã tính chi phí thuê tư vấn xây dựng phương án an ninh hệ thống khoảng 3.000.000 đồng/hồ sơ."]
[]
["4.b","(Cấp Giấy chứng nhận đủ điều kiện an ninh, trật tự kinh doanh dịch vụ dữ liệu)"]
["I.","CHI PHÍ THỰC HIỆN TTHC DỰ KIẾN BAN HÀNH MỚI"]
[]
["STT","Các công việc \nkhi thực hiện TTHC","Các hoạt động/ cách thức thực hiện cụ thể","Thời gian thực hiện (giờ)","Mức TNBQ/ 01 giờ làm việc (đồng)","Mức chi phí thuê tư vấn, dịch vụ (đồng)","Mức phí, lệ phí, chi phí khác (đồng)","Số lần thực hiện/ 01 năm","Số lượng đối tượng tuân thủ/01 năm","Chi phí thực hiện TTHC (đồng)","Tổng chi phí thực hiện TTHC/\n01 năm (đồng)","Ghi chú"]
[1,"Chuẩn bị hồ sơ"]
[null,"Doanh nghiệp chuẩn bị hồ sơ đăng ký kinh doanh có điều kiện, lý lịch tư pháp người chịu trách nhiệm","Chuẩn bị hồ sơ",16,58228,null,0,1,300,{"$f":"G151+F151+(D151*E151)","v":931648},{"$f":"J151*I151*H151","v":279494400}]
[2,"Nộp hồ sơ","Trực tiếp",0.5,58228,null,0,1,300,29114,8734200]
[null,null,"Bưu chính",0,58228,null,0,1,0,0,0]
[null,null,"Điện tử",0.25,58228,null,0,1,300,14557,4367100]
[3,"Nộp phí, lệ phí, chi phí khác",null,null,58228,null,0,1,300,0,0]
["3.1","Phí",null,0,58228,null,0,1,300,0,0]
["3.2","Lệ phí",null,0,58228,null,0,1,300,0,0]
["3.3","Chi phí khác",null,0,58228,null,0,1,300,0,0]
[4,"Chuẩn bị, phục vụ việc kiểm tra, đánh giá của cơ quan có thẩm quyền (nếu có)",null,0,58228,null,0,1,300,0,0]
[5,"Công việc khác (nếu có)",null,0,58228,null,0,1,300,0,0]
[6,"Nhận kết quả","Trực tiếp",1,58228,null,0,1,300,58228,17468400]
[null,null,"Bưu chính",0,58228,null,0,1,0,0,0]
[null,null,"Điện tử",0.1,58228,null,0,1,300,5822.8,1746840]
[null,"TỔNG 4.b",null,null,null,{"$f":"SUM(F150:F160)","v":0},{"$f":"SUM(G150:G160)","v":0},null,null,{"$f":"SUM(J150:J163)","v":1039369.8},{"$f":"SUM(K150:K163)","v":311810940}]
["Ghi chú giả định số liệu: Mức phí, lệ phí cụ thể do Bộ Tài chính quy định khi ban hành văn bản hướng dẫn thi hành."]
[]
[null,"TỔNG NHÓM (THỦ TỤC 4)",{"$nulls":8},{"$f":"K143+K164","v":537070630}]
[]
["THỦ TỤC HÀNH CHÍNH 5: Phê duyệt của Thủ tướng Chính phủ đối với trường hợp đặc biệt xử lý dữ liệu Cốt lõi"]
["5","(Phê duyệt của Thủ tướng Chính phủ đối với trường hợp đặc biệt xử lý dữ liệu Cốt lõi)"]
["I.","CHI PHÍ THỰC HIỆN TTHC DỰ KIẾN BAN HÀNH MỚI"]
[]
["STT","Các công việc \nkhi thực hiện TTHC","Các hoạt động/ cách thức thực hiện cụ thể","Thời gian thực hiện (giờ)","Mức TNBQ/ 01 giờ làm việc (đồng)","Mức chi phí thuê tư vấn, dịch vụ (đồng)","Mức phí, lệ phí, chi phí khác (đồng)","Số lần thực hiện/ 01 năm","Số lượng đối tượng tuân thủ/01 năm","Chi phí thực hiện TTHC (đồng)","Tổng chi phí thực hiện TTHC/\n01 năm (đồng)","Ghi chú"]
[1,"Chuẩn bị hồ sơ"]
[null,"Cơ quan chủ quản lập hồ sơ trình Thủ tướng Chính phủ, kèm ý kiến thẩm định của Bộ Công an/Bộ Quốc phòng","Chuẩn bị hồ sơ",40,58228,null,0,1,5,{"$f":"G175+F175+(D175*E175)","v":2329120},{"$f":"J175*I175*H175","v":11645600}]
[2,"Nộp hồ sơ","Trực tiếp",0.5,58228,null,0,1,5,29114,145570]
[null,null,"Bưu chính",0,58228,null,0,1,0,0,0]
[null,null,"Điện tử",0.25,58228,null,0,1,5,14557,72785]
[3,"Nộp phí, lệ phí, chi phí khác",null,null,58228,null,0,1,5,0,0]
["3.1","Phí",null,0,58228,null,0,1,5,0,0]
["3.2","Lệ phí",null,0,58228,null,0,1,5,0,0]
["3.3","Chi phí khác",null,0,58228,null,0,1,5,0,0]
[4,"Chuẩn bị, phục vụ việc kiểm tra, đánh giá của cơ quan có thẩm quyền (nếu có)",null,0,58228,null,0,1,5,0,0]
[5,"Công việc khác (nếu có)",null,0,58228,null,0,1,5,0,0]
[6,"Nhận kết quả","Trực tiếp",2,58228,null,0,1,5,116456,582280]
[null,null,"Bưu chính",0,58228,null,0,1,0,0,0]
[null,null,"Điện tử",0.1,58228,null,0,1,5,5822.8,29114]
[null,"TỔNG",null,null,null,{"$f":"SUM(F174:F184)","v":0},{"$f":"SUM(G174:G184)","v":0},null,null,{"$f":"SUM(J174:J187)","v":2495069.7999999998},{"$f":"SUM(K174:K187)","v":12475349}]
["Ghi chú giả định số liệu: Thủ tục áp dụng cho số lượng rất hạn chế trường hợp đặc biệt phục vụ lợi ích tối cao quốc gia."]
[]
["THỦ TỤC HÀNH CHÍNH 6: Cấp phép tham gia cơ chế thử nghiệm có kiểm soát (Sandbox)"]
["6","(Cấp phép tham gia cơ chế thử nghiệm có kiểm soát (Sandbox))"]
["I.","CHI PHÍ THỰC HIỆN TTHC DỰ KIẾN BAN HÀNH MỚI"]
[]
["STT","Các công việc \nkhi thực hiện TTHC","Các hoạt động/ cách thức thực hiện cụ thể","Thời gian thực hiện (giờ)","Mức TNBQ/ 01 giờ làm việc (đồng)","Mức chi phí thuê tư vấn, dịch vụ (đồng)","Mức phí, lệ phí, chi phí khác (đồng)","Số lần thực hiện/ 01 năm","Số lượng đối tượng tuân thủ/01 năm","Chi phí thực hiện TTHC (đồng)","Tổng chi phí thực hiện TTHC/\n01 năm (đồng)","Ghi chú"]
[1,"Chuẩn bị hồ sơ"]
[null,"Tổ chức, doanh nghiệp lập hồ sơ đăng ký, thuyết minh kỹ thuật giải pháp và phương án kiểm soát rủi ro","Chuẩn bị hồ sơ",24,58228,4000000,0,1,100,{"$f":"G197+F197+(D197*E197)","v":5397472},{"$f":"J197*I197*H197","v":539747200}]
[2,"Nộp hồ sơ","Trực tiếp",0.5,58228,null,0,1,100,29114,2911400]
[null,null,"Bưu chính",0,58228,null,0,1,0,0,0]
[null,null,"Điện tử",0.25,58228,null,0,1,100,14557,1455700]
[3,"Nộp phí, lệ phí, chi phí khác",null,null,58228,null,0,1,100,0,0]
["3.1","Phí",null,0,58228,null,0,1,100,0,0]
["3.2","Lệ phí",null,0,58228,null,0,1,100,0,0]
["3.3","Chi phí khác",null,0,58228,null,0,1,100,0,0]
[4,"Chuẩn bị, phục vụ việc kiểm tra, đánh giá của cơ quan có thẩm quyền (nếu có)",null,0,58228,null,0,1,100,0,0]
[5,"Công việc khác (nếu có)",null,0,58228,null,0,1,100,0,0]
[6,"Nhận kết quả","Trực tiếp",1,58228,null,0,1,100,58228,5822800]
[null,null,"Bưu chính",0,58228,null,0,1,0,0,0]
[null,null,"Điện tử",0.1,58228,null,0,1,100,5822.8,582280]
[null,"TỔNG",null,null,null,{"$f":"SUM(F196:F206)","v":4000000},{"$f":"SUM(G196:G206)","v":0},null,null,{"$f":"SUM(J196:J209)","v":5505193.7999999998},{"$f":"SUM(K196:K209)","v":550519380}]
["Ghi chú giả định số liệu: Đã tính chi phí thuê tư vấn xây dựng thuyết minh kỹ thuật khoảng 4.000.000 đồng/hồ sơ."]
[]
["THỦ TỤC HÀNH CHÍNH 7: Thẩm định, cấp văn bản chấp thuận an ninh khi chuyển dữ liệu Quan trọng, Cốt lõi ra nước ngoài"]
["7.a","(Thẩm định, cấp văn bản chấp thuận an ninh khi chuyển dữ liệu Quan trọng, Cốt lõi ra nước ngoài)"]
["I.","CHI PHÍ THỰC HIỆN TTHC DỰ KIẾN BAN HÀNH MỚI"]
[]
["STT","Các công việc \nkhi thực hiện TTHC","Các hoạt động/ cách thức thực hiện cụ thể","Thời gian thực hiện (giờ)","Mức TNBQ/ 01 giờ làm việc (đồng)","Mức chi phí thuê tư vấn, dịch vụ (đồng)","Mức phí, lệ phí, chi phí khác (đồng)","Số lần thực hiện/ 01 năm","Số lượng đối tượng tuân thủ/01 năm","Chi phí thực hiện TTHC (đồng)","Tổng chi phí thực hiện TTHC/\n01 năm (đồng)","Ghi chú"]
[1,"Chuẩn bị hồ sơ"]
[null,"Tổ chức lập hồ sơ đề nghị, kèm hợp đồng/thỏa thuận chuyển dữ liệu và đánh giá tác động an ninh dữ liệu xuyên biên giới","Chuẩn bị hồ sơ",24,58228,5000000,0,1,200,{"$f":"G219+F219+(D219*E219)","v":6397472},{"$f":"J219*I219*H219","v":1279494400}]
[2,"Nộp hồ sơ","Trực tiếp",0.5,58228,null,0,1,200,29114,5822800]
[null,null,"Bưu chính",0,58228,null,0,1,0,0,0]
[null,null,"Điện tử",0.25,58228,null,0,1,200,14557,2911400]
[3,"Nộp phí, lệ phí, chi phí khác",null,null,58228,null,0,1,200,0,0]
["3.1","Phí",null,0,58228,null,0,1,200,0,0]
["3.2","Lệ phí",null,0,58228,null,0,1,200,0,0]
["3.3","Chi phí khác",null,0,58228,null,0,1,200,0,0]
[4,"Chuẩn bị, phục vụ việc kiểm tra, đánh giá của cơ quan có thẩm quyền (nếu có)",null,0,58228,null,0,1,200,0,0]
[5,"Công việc khác (nếu có)",null,0,58228,null,0,1,200,0,0]
[6,"Nhận kết quả","Trực tiếp",1,58228,null,0,1,200,58228,11645600]
[null,null,"Bưu chính",0,58228,null,0,1,0,0,0]
[null,null,"Điện tử",0.1,58228,null,0,1,200,5822.8,1164560]
[null,"TỔNG 7.a",null,null,null,{"$f":"SUM(F218:F228)","v":5000000},{"$f":"SUM(G218:G228)","v":0},null,null,{"$f":"SUM(J218:J231)","v":6505193.7999999998},{"$f":"SUM(K218:K231)","v":1301038760}]
["Ghi chú giả định số liệu: Đã tính chi phí thuê tư vấn pháp lý quốc tế khoảng 5.000.000 đồng/hồ sơ."]
[]
["7.b","(Đăng ký Hợp đồng tiêu chuẩn (SCC) bảo vệ dữ liệu khi chuyển ra nước ngoài)"]
["I.","CHI PHÍ THỰC HIỆN TTHC DỰ KIẾN BAN HÀNH MỚI"]
[]
["STT","Các công việc \nkhi thực hiện TTHC","Các hoạt động/ cách thức thực hiện cụ thể","Thời gian thực hiện (giờ)","Mức TNBQ/ 01 giờ làm việc (đồng)","Mức chi phí thuê tư vấn, dịch vụ (đồng)","Mức phí, lệ phí, chi phí khác (đồng)","Số lần thực hiện/ 01 năm","Số lượng đối tượng tuân thủ/01 năm","Chi phí thực hiện TTHC (đồng)","Tổng chi phí thực hiện TTHC/\n01 năm (đồng)","Ghi chú"]
[1,"Chuẩn bị hồ sơ"]
[null,"Doanh nghiệp áp dụng mẫu Hợp đồng tiêu chuẩn do Bộ Công an ban hành, gửi đăng ký với Bộ Công an","Chuẩn bị hồ sơ",8,58228,null,0,1,1000,{"$f":"G240+F240+(D240*E240)","v":465824},{"$f":"J240*I240*H240","v":465824000}]
[2,"Nộp hồ sơ","Trực tiếp",0.5,58228,null,0,1,1000,29114,29114000]
[null,null,"Bưu chính",0,58228,null,0,1,0,0,0]
[null,null,"Điện tử",0.25,58228,null,0,1,1000,14557,14557000]
[3,"Nộp phí, lệ phí, chi phí khác",null,null,58228,null,0,1,1000,0,0]
["3.1","Phí",null,0,58228,null,0,1,1000,0,0]
["3.2","Lệ phí",null,0,58228,null,0,1,1000,0,0]
["3.3","Chi phí khác",null,0,58228,null,0,1,1000,0,0]
[4,"Chuẩn bị, phục vụ việc kiểm tra, đánh giá của cơ quan có thẩm quyền (nếu có)",null,0,58228,null,0,1,1000,0,0]
[5,"Công việc khác (nếu có)",null,0,58228,null,0,1,1000,0,0]
[6,"Nhận kết quả","Trực tiếp",0,58228,null,0,1,1000,0,0]
[null,null,"Bưu chính",0,58228,null,0,1,0,0,0]
[null,null,"Điện tử",0.1,58228,null,0,1,1000,5822.8,5822800]
[null,"TỔNG 7.b",null,null,null,{"$f":"SUM(F239:F249)","v":0},{"$f":"SUM(G239:G249)","v":0},null,null,{"$f":"SUM(J239:J252)","v":515317.8},{"$f":"SUM(K239:K252)","v":515317800}]
["Ghi chú giả định số liệu: Chi phí thấp do sử dụng mẫu hợp đồng chuẩn có sẵn, không phải tự soạn thảo hoặc thuê tư vấn riêng."]
[]
["7.c","(Cấp Giấy chứng nhận hợp quy an ninh dữ liệu xuyên biên giới)"]
["I.","CHI PHÍ THỰC HIỆN TTHC DỰ KIẾN BAN HÀNH MỚI"]
[]
["STT","Các công việc \nkhi thực hiện TTHC","Các hoạt động/ cách thức thực hiện cụ thể","Thời gian thực hiện (giờ)","Mức TNBQ/ 01 giờ làm việc (đồng)","Mức chi phí thuê tư vấn, dịch vụ (đồng)","Mức phí, lệ phí, chi phí khác (đồng)","Số lần thực hiện/ 01 năm","Số lượng đối tượng tuân thủ/01 năm","Chi phí thực hiện TTHC (đồng)","Tổng chi phí thực hiện TTHC/\n01 năm (đồng)","Ghi chú"]
[1,"Chuẩn bị hồ sơ"]
[null,"Tổ chức chuẩn bị báo cáo đánh giá an ninh độc lập và chính sách bảo mật xuyên biên giới","Chuẩn bị hồ sơ",16,58228,3000000,0,1,150,{"$f":"G261+F261+(D261*E261)","v":3931648},{"$f":"J261*I261*H261","v":589747200}]
[2,"Nộp hồ sơ","Trực tiếp",0.5,58228,null,0,1,150,29114,4367100]
[null,null,"Bưu chính",0,58228,null,0,1,0,0,0]
[null,null,"Điện tử",0.25,58228,null,0,1,150,14557,2183550]
[3,"Nộp phí, lệ phí, chi phí khác",null,null,58228,null,0,1,150,0,0]
["3.1","Phí",null,0,58228,null,0,1,150,0,0]
["3.2","Lệ phí",null,0,58228,null,0,1,150,0,0]
["3.3","Chi phí khác",null,0,58228,null,0,1,150,0,0]
[4,"Chuẩn bị, phục vụ việc kiểm tra, đánh giá của cơ quan có thẩm quyền (nếu có)",null,0,58228,null,0,1,150,0,0]
[5,"Công việc khác (nếu có)",null,0,58228,null,0,1,150,0,0]
[6,"Nhận kết quả","Trực tiếp",1,58228,null,0,1,150,58228,8734200]
[null,null,"Bưu chính",0,58228,null,0,1,0,0,0]
[null,null,"Điện tử",0.1,58228,null,0,1,150,5822.8,873420]
[null,"TỔNG 7.c",null,null,null,{"$f":"SUM(F260:F270)","v":3000000},{"$f":"SUM(G260:G270)","v":0},null,null,{"$f":"SUM(J260:J273)","v":4039369.8},{"$f":"SUM(K260:K273)","v":605905470}]
["Ghi chú giả định số liệu: Đã tính chi phí thuê đơn vị đánh giá an ninh độc lập khoảng 3.000.000 đồng/hồ sơ."]
[]
["7.d","(Báo cáo định kỳ hằng năm về hoạt động chuyển dữ liệu ra nước ngoài)"]
["I.","CHI PHÍ THỰC HIỆN TTHC DỰ KIẾN BAN HÀNH MỚI"]
[]
["STT","Các công việc \nkhi thực hiện TTHC","Các hoạt động/ cách thức thực hiện cụ thể","Thời gian thực hiện (giờ)","Mức TNBQ/ 01 giờ làm việc (đồng)","Mức chi phí thuê tư vấn, dịch vụ (đồng)","Mức phí, lệ phí, chi phí khác (đồng)","Số lần thực hiện/ 01 năm","Số lượng đối tượng tuân thủ/01 năm","Chi phí thực hiện TTHC (đồng)","Tổng chi phí thực hiện TTHC/\n01 năm (đồng)","Ghi chú"]
[1,"Chuẩn bị hồ sơ"]
[null,"Tổ chức lập báo cáo tổng hợp khối lượng, loại dữ liệu đã chuyển trong kỳ và cơ chế pháp lý áp dụng","Chuẩn bị hồ sơ",4,58228,null,0,1,1200,{"$f":"G282+F282+(D282*E282)","v":232912},{"$f":"J282*I282*H282","v":279494400}]
[2,"Nộp hồ sơ","Trực tiếp",0.5,58228,null,0,1,1200,29114,34936800]
[null,null,"Bưu chính",0,58228,null,0,1,0,0,0]
[null,null,"Điện tử",0.25,58228,null,0,1,1200,14557,17468400]
[3,"Nộp phí, lệ phí, chi phí khác",null,null,58228,null,0,1,1200,0,0]
["3.1","Phí",null,0,58228,null,0,1,1200,0,0]
["3.2","Lệ phí",null,0,58228,null,0,1,1200,0,0]
["3.3","Chi phí khác",null,0,58228,null,0,1,1200,0,0]
[4,"Chuẩn bị, phục vụ việc kiểm tra, đánh giá của cơ quan có thẩm quyền (nếu có)",null,0,58228,null,0,1,1200,0,0]
[5,"Công việc khác (nếu có)",null,0,58228,null,0,1,1200,0,0]
[6,"Nhận kết quả","Trực tiếp",0,58228,null,0,1,1200,0,0]
[null,null,"Bưu chính",0,58228,null,0,1,0,0,0]
[null,null,"Điện tử",0.1,58228,null,0,1,1200,5822.8,6987360]
[null,"TỔNG 7.d",null,null,null,{"$f":"SUM(F281:F291)","v":0},{"$f":"SUM(G281:G291)","v":0},null,null,{"$f":"SUM(J281:J294)","v":282405.8},{"$f":"SUM(K281:K294)","v":338886960}]
["Ghi chú giả định số liệu: Áp dụng cơ chế hậu kiểm, chi phí thấp hơn đáng kể so với tiền kiểm toàn bộ."]
[]
[null,"TỔNG NHÓM (THỦ TỤC 7)",{"$nulls":8},{"$f":"K232+K253+K274+K295","v":2761148990}]
[]
["THỦ TỤC HÀNH CHÍNH 8: Cấp, công nhận chứng chỉ chuyên môn về an ninh dữ liệu"]
["8","(Cấp, công nhận Chứng chỉ chuyên môn về an ninh dữ liệu)"]
["I.","CHI PHÍ THỰC HIỆN TTHC DỰ KIẾN BAN HÀNH MỚI"]
[]
["STT","Các công việc \nkhi thực hiện TTHC","Các hoạt động/ cách thức thực hiện cụ thể","Thời gian thực hiện (giờ)","Mức TNBQ/ 01 giờ làm việc (đồng)","Mức chi phí thuê tư vấn, dịch vụ (đồng)","Mức phí, lệ phí, chi phí khác (đồng)","Số lần thực hiện/ 01 năm","Số lượng đối tượng tuân thủ/01 năm","Chi phí thực hiện TTHC (đồng)","Tổng chi phí thực hiện TTHC/\n01 năm (đồng)","Ghi chú"]
[1,"Chuẩn bị hồ sơ"]
[null,"Cá nhân chuẩn bị hồ sơ, tham gia sát hạch hoặc đề nghị công nhận chứng chỉ quốc tế tương đương","Chuẩn bị hồ sơ",8,58228,null,0,1,15000,{"$f":"G306+F306+(D306*E306)","v":465824},{"$f":"J306*I306*H306","v":6987360000}]
[2,"Nộp hồ sơ","Trực tiếp",0.5,58228,null,0,1,15000,29114,436710000]
[null,null,"Bưu chính",0,58228,null,0,1,0,0,0]
[null,null,"Điện tử",0.25,58228,null,0,1,15000,14557,218355000]
[3,"Nộp phí, lệ phí, chi phí khác",null,null,58228,null,500000,1,15000,500000,7500000000]
["3.1","Phí",null,0,58228,null,0,1,15000,0,0]
["3.2","Lệ phí",null,0,58228,null,500000,1,15000,500000,7500000000]
["3.3","Chi phí khác",null,0,58228,null,0,1,15000,0,0]
[4,"Chuẩn bị, phục vụ việc kiểm tra, đánh giá của cơ quan có thẩm quyền (nếu có)",null,0,58228,null,0,1,15000,0,0]
[5,"Công việc khác (nếu có)",null,0,58228,null,0,1,15000,0,0]
[6,"Nhận kết quả","Trực tiếp",0,58228,null,0,1,15000,0,0]
[null,null,"Bưu chính",0,58228,null,0,1,0,0,0]
[null,null,"Điện tử",0.1,58228,null,0,1,15000,5822.8,87342000]
[null,"TỔNG",null,null,null,{"$f":"SUM(F305:F315)","v":0},{"$f":"SUM(G305:G315)","v":1000000},null,null,{"$f":"SUM(J305:J318)","v":1515317.8},{"$f":"SUM(K305:K318)","v":22729767000}]
["Ghi chú giả định số liệu: Ước tính theo số nhân sự vận hành hệ thống Cấp độ 3, 4 trên toàn quốc cần hoàn thiện chứng chỉ trong giai đoạn chuyển tiếp; đã tính lệ phí sát hạch khoảng 500.000 đồng/người, được miễn nếu có chứng chỉ quốc tế tương đương."]
[]
["THỦ TỤC HÀNH CHÍNH 9: Thẩm tra an ninh nhân sự nước ngoài tham gia dự án dữ liệu Cấp độ 3, Cấp độ 4"]
["9","(Thẩm tra an ninh nhân sự nước ngoài tham gia dự án dữ liệu Cấp độ 3, Cấp độ 4)"]
["I.","CHI PHÍ THỰC HIỆN TTHC DỰ KIẾN BAN HÀNH MỚI"]
[]
["STT","Các công việc \nkhi thực hiện TTHC","Các hoạt động/ cách thức thực hiện cụ thể","Thời gian thực hiện (giờ)","Mức TNBQ/ 01 giờ làm việc (đồng)","Mức chi phí thuê tư vấn, dịch vụ (đồng)","Mức phí, lệ phí, chi phí khác (đồng)","Số lần thực hiện/ 01 năm","Số lượng đối tượng tuân thủ/01 năm","Chi phí thực hiện TTHC (đồng)","Tổng chi phí thực hiện TTHC/\n01 năm (đồng)","Ghi chú"]
[1,"Chuẩn bị hồ sơ"]
[null,"Cơ quan, tổ chức sử dụng chuyên gia nước ngoài lập hồ sơ thẩm tra an ninh nhân sự","Chuẩn bị hồ sơ",8,58228,null,0,1,500,{"$f":"G328+F328+(D328*E328)","v":465824},{"$f":"J328*I328*H328","v":232912000}]
[2,"Nộp hồ sơ","Trực tiếp",0.5,58228,null,0,1,500,29114,14557000]
[null,null,"Bưu chính",0,58228,null,0,1,0,0,0]
[null,null,"Điện tử",0.25,58228,null,0,1,500,14557,7278500]
[3,"Nộp phí, lệ phí, chi phí khác",null,null,58228,null,0,1,500,0,0]
["3.1","Phí",null,0,58228,null,0,1,500,0,0]
["3.2","Lệ phí",null,0,58228,null,0,1,500,0,0]
["3.3","Chi phí khác",null,0,58228,null,0,1,500,0,0]
[4,"Chuẩn bị, phục vụ việc kiểm tra, đánh giá của cơ quan có thẩm quyền (nếu có)",null,0,58228,null,0,1,500,0,0]
[5,"Công việc khác (nếu có)",null,0,58228,null,0,1,500,0,0]
[6,"Nhận kết quả","Trực tiếp",1,58228,null,0,1,500,58228,29114000]
[null,null,"Bưu chính",0,58228,null,0,1,0,0,0]
[null,null,"Điện tử",0.1,58228,null,0,1,500,5822.8,2911400]
[null,"TỔNG",null,null,null,{"$f":"SUM(F327:F337)","v":0},{"$f":"SUM(G327:G337)","v":0},null,null,{"$f":"SUM(J327:J340)","v":573545.80000000005},{"$f":"SUM(K327:K340)","v":286772900}]
["Ghi chú giả định số liệu: Chủ yếu là thủ tục nội bộ, chỉ báo cáo Bộ Công an khi có yêu cầu."]
[]
["THỦ TỤC HÀNH CHÍNH 10: Báo cáo, thông báo sự cố an ninh dữ liệu"]
["10","(Báo cáo, thông báo sự cố an ninh dữ liệu)"]
["I.","CHI PHÍ THỰC HIỆN TTHC DỰ KIẾN BAN HÀNH MỚI"]
[]
["STT","Các công việc \nkhi thực hiện TTHC","Các hoạt động/ cách thức thực hiện cụ thể","Thời gian thực hiện (giờ)","Mức TNBQ/ 01 giờ làm việc (đồng)","Mức chi phí thuê tư vấn, dịch vụ (đồng)","Mức phí, lệ phí, chi phí khác (đồng)","Số lần thực hiện/ 01 năm","Số lượng đối tượng tuân thủ/01 năm","Chi phí thực hiện TTHC (đồng)","Tổng chi phí thực hiện TTHC/\n01 năm (đồng)","Ghi chú"]
[1,"Chuẩn bị hồ sơ"]
[null,"Chủ quản dữ liệu lập báo cáo ban đầu (24 giờ) và báo cáo đầy đủ (72 giờ) theo mẫu","Chuẩn bị hồ sơ",4,58228,null,0,1,2000,{"$f":"G350+F350+(D350*E350)","v":232912},{"$f":"J350*I350*H350","v":465824000}]
[2,"Nộp hồ sơ","Trực tiếp",0.5,58228,null,0,1,2000,29114,58228000]
[null,null,"Bưu chính",0,58228,null,0,1,0,0,0]
[null,null,"Điện tử",0.25,58228,null,0,1,2000,14557,29114000]
[3,"Nộp phí, lệ phí, chi phí khác",null,null,58228,null,0,1,2000,0,0]
["3.1","Phí",null,0,58228,null,0,1,2000,0,0]
["3.2","Lệ phí",null,0,58228,null,0,1,2000,0,0]
["3.3","Chi phí khác",null,0,58228,null,0,1,2000,0,0]
[4,"Chuẩn bị, phục vụ việc kiểm tra, đánh giá của cơ quan có thẩm quyền (nếu có)",null,0,58228,null,0,1,2000,0,0]
[5,"Công việc khác (nếu có)",null,0,58228,null,0,1,2000,0,0]
[6,"Nhận kết quả","Trực tiếp",0,58228,null,0,1,2000,0,0]
[null,null,"Bưu chính",0,58228,null,0,1,0,0,0]
[null,null,"Điện tử",0.1,58228,null,0,1,2000,5822.8,11645600]
[null,"TỔNG",null,null,null,{"$f":"SUM(F349:F359)","v":0},{"$f":"SUM(G349:G359)","v":0},null,null,{"$f":"SUM(J349:J362)","v":282405.8},{"$f":"SUM(K349:K362)","v":564811600}]
["Ghi chú giả định số liệu: Số lượng ước tính theo số sự cố an ninh dữ liệu phải báo cáo hằng năm; thời gian tính theo yêu cầu khẩn cấp của thủ tục."]
[]
["THỦ TỤC HÀNH CHÍNH 11: Xác nhận đủ điều kiện an toàn để khôi phục kết nối hệ thống sau sự cố"]
["11","(Xác nhận đủ điều kiện an toàn để khôi phục kết nối hệ thống sau sự cố)"]
["I.","CHI PHÍ THỰC HIỆN TTHC DỰ KIẾN BAN HÀNH MỚI"]
[]
["STT","Các công việc \nkhi thực hiện TTHC","Các hoạt động/ cách thức thực hiện cụ thể","Thời gian thực hiện (giờ)","Mức TNBQ/ 01 giờ làm việc (đồng)","Mức chi phí thuê tư vấn, dịch vụ (đồng)","Mức phí, lệ phí, chi phí khác (đồng)","Số lần thực hiện/ 01 năm","Số lượng đối tượng tuân thủ/01 năm","Chi phí thực hiện TTHC (đồng)","Tổng chi phí thực hiện TTHC/\n01 năm (đồng)","Ghi chú"]
[1,"Chuẩn bị hồ sơ"]
[null,"Cơ quan, tổ chức lập báo cáo kỹ thuật khắc phục sự cố, biên bản kiểm tra nội bộ","Chuẩn bị hồ sơ",8,58228,null,0,1,150,{"$f":"G372+F372+(D372*E372)","v":465824},{"$f":"J372*I372*H372","v":69873600}]
[2,"Nộp hồ sơ","Trực tiếp",0.5,58228,null,0,1,150,29114,4367100]
[null,null,"Bưu chính",0,58228,null,0,1,0,0,0]
[null,null,"Điện tử",0.25,58228,null,0,1,150,14557,2183550]
[3,"Nộp phí, lệ phí, chi phí khác",null,null,58228,null,0,1,150,0,0]
["3.1","Phí",null,0,58228,null,0,1,150,0,0]
["3.2","Lệ phí",null,0,58228,null,0,1,150,0,0]
["3.3","Chi phí khác",null,0,58228,null,0,1,150,0,0]
[4,"Chuẩn bị, phục vụ việc kiểm tra, đánh giá của cơ quan có thẩm quyền (nếu có)",null,0,58228,null,0,1,150,0,0]
[5,"Công việc khác (nếu có)",null,0,58228,null,0,1,150,0,0]
[6,"Nhận kết quả","Trực tiếp",1,58228,null,0,1,150,58228,8734200]
[null,null,"Bưu chính",0,58228,null,0,1,0,0,0]
[null,null,"Điện tử",0.1,58228,null,0,1,150,5822.8,873420]
[null,"TỔNG",null,null,null,{"$f":"SUM(F371:F381)","v":0},{"$f":"SUM(G371:G381)","v":0},null,null,{"$f":"SUM(J371:J384)","v":573545.80000000005},{"$f":"SUM(K371:K384)","v":86031870}]
["Ghi chú giả định số liệu: Số lượng ước tính theo số sự cố an ninh dữ liệu nghiêm trọng xảy ra hằng năm."]

{"sheet":"Tổng hợp","index":1,"n_rows":18,"n_cols":6,"rows_kept":18,"cut":false,"hidden":false,"merged":[[0,0,0,5],[1,0,1,5],[15,0,15,1],[17,0,17,5]]}
["BẢNG TỔNG HỢP CHI PHÍ TUÂN THỦ THỦ TỤC HÀNH CHÍNH"]
["DỰ THẢO LUẬT AN NINH DỮ LIỆU (11 nhóm thủ tục hành chính)"]
[]
["STT","Tên thủ tục hành chính","Chi phí tuân thủ dự kiến/năm (đồng)","Tỷ trọng (%)","Xếp hạng","Ghi chú"]
[1,"Đăng ký, khai báo Danh mục dữ liệu quốc gia và thẩm định an ninh hệ thống, đầu tư, chuyển giao công nghệ",{"$f":"'Chi phí dự kiến'!K55","v":9435425640},{"$f":"C5/$C$16","v":0.23572630930321628},{"$f":"RANK(C5,$C$5:$C$15)","v":2}]
[2,"Báo cáo đánh giá rủi ro định kỳ, đột xuất và chứng nhận hợp quy sản phẩm, dịch vụ công nghệ an ninh dữ liệu",{"$f":"'Chi phí dự kiến'!K100","v":2938062670},7.3401953035862569E-2,3]
[3,"Cấp phép giao dịch dữ liệu Cốt lõi, Quan trọng trong trường hợp đặc biệt",{"$f":"'Chi phí dự kiến'!K121","v":124950698},3.1216574649832935E-3,9]
[4,"Đăng ký, cấp phép kinh doanh dịch vụ dữ liệu, bao gồm hoạt động môi giới, vận hành sàn giao dịch dữ liệu",{"$f":"'Chi phí dự kiến'!K167","v":537070630},1.3417696485079102E-2,7]
[5,"Phê duyệt của Thủ tướng Chính phủ đối với trường hợp đặc biệt xử lý dữ liệu Cốt lõi",{"$f":"'Chi phí dự kiến'!K188","v":12475349},3.1167305951441634E-4,11]
[6,"Cấp phép tham gia cơ chế thử nghiệm có kiểm soát (Sandbox)",{"$f":"'Chi phí dự kiến'!K210","v":550519380},1.3753688132218151E-2,6]
[7,"Thẩm định, cấp văn bản chấp thuận an ninh khi chuyển dữ liệu Quan trọng, Cốt lõi ra nước ngoài",{"$f":"'Chi phí dự kiến'!K298","v":2761148990},6.8982098495876998E-2,4]
[8,"Cấp, công nhận chứng chỉ chuyên môn về an ninh dữ liệu",{"$f":"'Chi phí dự kiến'!K319","v":22729767000},0.56786034787001283,1]
[9,"Thẩm tra an ninh nhân sự nước ngoài tham gia dự án dữ liệu Cấp độ 3, Cấp độ 4",{"$f":"'Chi phí dự kiến'!K341","v":286772900},7.1644798978226397E-3,8]
[10,"Báo cáo, thông báo sự cố an ninh dữ liệu",{"$f":"'Chi phí dự kiến'!K363","v":564811600},1.4110752286066924E-2,5]
[11,"Xác nhận đủ điều kiện an toàn để khôi phục kết nối hệ thống sau sự cố",{"$f":"'Chi phí dự kiến'!K385","v":86031870},2.1493439693467918E-3,10]
["TỔNG CỘNG",null,{"$f":"SUM(C5:C15)","v":40027036727},1]
[]
["Ghi chú: Thủ tục 8 (Cấp, công nhận chứng chỉ chuyên môn) chiếm tỷ trọng chi phí lớn nhất do áp dụng cho quy mô lớn nhân sự vận hành hệ thống Cấp độ 3, Cấp độ 4 trên toàn quốc; Thủ tục 1 (Thẩm định an ninh hệ thống, đầu tư) đứng thứ hai do chi phí tư vấn kỹ thuật cao. Đây là 02 thủ tục cần ưu tiên áp dụng phương án giảm chi phí tuân thủ (công nhận chứng chỉ quốc tế, lộ trình chuyển tiếp, cơ chế một cửa liên thông) đã đề xuất tại Bản đánh giá thủ tục hành chính."]